Cogmind - Beta 14 @@@ ROGUE MODE // 2024.11.08 @ 02:09:28 Player: mlys Result: Destroyed by G-34 Mercenary with Small Laser Performance ------------- Evolutions (1) 500 Regions Visited (2) 400 Robots Destroyed (56) 280 Value Destroyed (1335) 1335 Prototype IDs (2) 40 Alien Tech Used (0) 0 Bonus (97) 97 TOTAL SCORE: 2652 Bonus ------- High Alert Combat Kills 97 Cogmind --------- Core Integrity 0/400 Matter 300/300 Energy 100/100 System Corruption 7% Temperature Cool (6) Movement Core (50) Location -9/Materials Parts ------- > --- POWER (2) -------- (None) > --- PROPULSION (2) --- (None) > --- UTILITY (2) ------ Signal Interpreter > --- WEAPON (3) ------- Heavy Assault Rifle > --- INVENTORY (5) ---- (None) Peak State ------------ > --- POWER ------------ Light Ion Engine Improved Ion Engine > --- PROPULSION ------- Light Treads Light Treads > --- UTILITY ---------- Signal Interpreter Improved Terrain Scanner > --- WEAPON ----------- Advanced Beam Cannon High-powered Shotgun High-powered Shotgun > --- INVENTORY -------- Improved Treads Improved Heat Sink Large Storage Unit High-powered Tractor Beam Autogun [Rating: 19] Favorites ----------- Power Light Ion Engine Engine Light Ion Engine Propulsion Light Treads Treads Light Treads Wheel Wheel Hover Unit Backup Propulsion I Utility Improved Terrain Scanner Device Improved Terrain Scanner Storage Large Storage Unit Processor Signal Interpreter Protection Light Armor Plating Weapon High-powered Shotgun Energy Gun EM Shotgun Energy Cannon Advanced Beam Cannon Ballistic Gun High-powered Shotgun Launcher Rocket Launcher Build | -11 -10 -9 ------- Run | Yrd Mat Mat Slots Evolved 2 | . . 2 Power 1 | . . 1 Propulsion . | . . . Utility . | . . . Weapon 1 | . . 1 Parts Attached 41 | 5 6 30 Power 5 | 1 . 4 Engine 5 | 1 . 4 Core . | . . . Reactor . | . . . Propulsion 13 | 2 . 11 Treads 9 | . . 9 Leg . | . . . Wheel 4 | 2 . 2 Hover . | . . . Flight . | . . . Utility 7 | . 3 4 Device 3 | . 1 2 Storage 2 | . 2 . Processor 1 | . . 1 Hackware . | . . . Protection 1 | . . 1 Artifact . | . . . Weapon 16 | 2 3 11 Energy Gun 2 | . . 2 Energy Cannon 1 | . . 1 Ballistic Gun 11 | 2 2 7 Ballistic Cannon . | . . . Launcher 2 | . 1 1 Special Weapon . | . . . Impact Weapon . | . . . Slashing Weapon . | . . . Piercing Weapon . | . . . Special Melee Weapon . | . . . Unidentified Prototypes 2 | . . 2 Corrupted Parts 1 | . . 1 System Corruption 1 | . . 1 Parts Lost 18 | . . 18 Power 4 | . . 4 Propulsion 5 | . . 5 Utility 3 | . . 3 Weapon 6 | . . 6 Highest Loss Streak 6 | . . 6 To Critical Strikes . | . . . Average Slot Usage (%) 88 | . 91 88 Engine 15 | . 14 16 Treads 13 | . . 17 Wheel 8 | . 28 3 Device 7 | . 2 8 Storage 4 | . 17 . Processor 5 | . . 7 Protection 2 | . . 3 Energy Gun 3 | . . 4 Energy Cannon 2 | . . 2 Ballistic Gun 19 | . 19 19 Launcher 4 | . 8 3 Peak Build Rating 19 | 5 10 19 Average Rating 11 | 4 7 13 On Entrance 4 | . 5 8 Naked Turns . | . . . Heaviest Build 33 | 5 31 33 Greatest Support 43 | 20 26 43 Greatest Overweight (x) 3 | . 1 3 Average Overweight (x) . | . . . Largest Inventory Capacity 15 | 5 15 15 Average Capacity 7 | 5 14 5 Most Carried 7 | 3 7 6 Average Carried 2 | . 3 3 Final Capacity 15 | 5 15 5 Final Carried 5 | 2 5 . Class Distribution -------------------- 32% | Mutant 23% | Tank 23% | Scavenger-Skirmisher 9% | Scavenger-Mutant 7% | Scavenger-Gunner Dominant Class ---------------- Mutant | -10/Materials Tank | -9/Materials Resources | -11 -10 -9 ----------- Run | Yrd Mat Mat Matter Collected 1481 | 203 228 1050 Remotely 113 | . . 113 Salvage Created 1570 | 49 131 1390 Parts 115 | 4 13 98 Haulers Intercepted 1 | . . 1 Recyclers Shooed 1 | . . 1 Parts Field Recycled . | . . . Retrieved Matter . | . . . Parts Self-Destructed . | . . . Prevented . | . . . Kills | -11 -10 -9 ------- Run | Yrd Mat Mat Combat Hostiles Destroyed 38 | 1 3 34 Guns 23 | 1 2 20 Cannons 4 | . . 4 AOE 11 | . 1 10 Classes Destroyed 10 | 2 2 6 Worker 6 | 1 . 5 Builder 3 | . 1 2 Tunneler 1 | . . 1 Hauler 1 | . . 1 Recycler 2 | . . 2 Watcher 5 | . 2 3 Swarmer 10 | . . 10 Grunt 21 | 1 3 17 Brawler 1 | . . 1 Sentry 6 | . . 6 Best Kill Streak 11 | 1 3 11 Combat Bots Only 7 | 1 2 7 Max Kills in Single Turn 4 | 1 1 4 Gunslinging . | . . . Exploded 4 | . 1 4 Melee . | . . . Uniques/NPCs Destroyed . | . . . Combat | -11 -10 -9 -------- Run | Yrd Mat Mat Hostile Shots Fired 270 | 5 10 255 Missed 85 | 4 5 76 Damage Taken 2535 | 12 56 2467 Core 439 | . 34 405 Absorbed by Shields . | . . . Regen/Repaired (Parts) 41 | . . 41 Core Remaining (%) 93 | 100 86 . Volleys Fired 114 | 8 15 91 Largest 3 | 2 2 3 Hottest 158 | 40 50 158 Shots Fired 268 | 16 30 222 Gun 223 | 16 23 184 Cannon 26 | . . 26 Launcher 19 | . 7 12 Special . | . . . Kinetic 201 | 16 23 162 Thermal 41 | . . 41 Explosive 19 | . 7 12 Electromagnetic 7 | . . 7 Robot Hit Streak 8 | 6 4 8 Robot Miss Streak 7 | 1 5 7 Penetration Max . | . . . Secondary Targets 6 | . . 6 Max Gunslinging Chain 1 | . . 1 Shots Hit Robots 168 | 12 16 140 Core Hits 105 | 4 10 91 Critical Kills . | . . . Critical Parts Destroyed . | . . . Critical Strikes . | . . . Melee Attacks . | . . . Impact . | . . . Slashing . | . . . Piercing . | . . . Sneak Attacks . | . . . Combat Hostiles . | . . . Follow-up Attacks . | . . . Damage Inflicted 3748 | 90 380 3278 Guns 2313 | 90 124 2099 Cannons 305 | . . 305 Explosions 1129 | . 256 873 Melee . | . . . Ramming 1 | . . 1 Kinetic 2054 | 90 124 1840 Thermal 476 | . . 476 Explosive 1005 | . 256 749 Electromagnetic 212 | . . 212 Impact . | . . . Slashing . | . . . Piercing . | . . . Highest Corruption 7 | . 2 7 Average Corruption 4 | . 2 4 Corruption Purged . | . . . Corruption Blocked . | . . . Effects 32 | . 4 28 Message Errors 6 | . . 6 Matter Fused 10 | . 2 8 Heat Flow Errors 3 | . . 3 Energy Discharges 6 | . 1 5 Parts Rejected 2 | . 1 1 Parts Fused 1 | . . 1 Data Loss (minor) 1 | . . 1 Misfires 1 | . . 1 Alerts 1 | . . 1 Weapon Failures 1 | . . 1 Overload Shots . | . . . Overflow Damage 71 | . 10 61 Projectiles 1 | . . 1 Explosions 70 | . 10 60 Melee . | . . . Knockbacks . | . . . Impact . | . . . Kinetic . | . . . Secondary . | . . . Self-Inflicted Damage 232 | . . 232 Shots 7 | . . 7 Rammed 1 | . . 1 Targets Rammed 1 | . . 1 Kicked . | . . . Crushed . | . . . Highest Temperature 487 | 6 26 487 Average Temperature 97 | 6 8 105 Received Heat Transfer 1062 | 6 30 1026 Effects 7 | . . 7 Shutdowns 4 | . . 4 Interference 2 | . . 2 Damage (minor) 1 | . . 1 Siege Activations . | . . . Robots Corrupted . | . . . Combat Hostiles . | . . . Parts Fried 1 | . . 1 Impact Corruptions . | . . . Robots Melted . | . . . Combat Hostiles . | . . . Parts Melted . | . . . Heat Transferred 770 | . . 770 Parts Sabotaged . | . . . Parts Stolen . | . . . Parts Stripped . | . . . Power Chain Reactions 1 | . . 1 Alert | -11 -10 -9 ------- Run | Yrd Mat Mat Peak Influence 781 | 25 175 781 Initial 24 | . 16 24 Average 251 | 2 108 308 Maximum Alert Level 3 | . . 3 Low Security (%) 58 | 100 100 43 Level 1 20 | . . 27 Level 2 8 | . . 10 Level 3 13 | . . 17 Level 4 . | . . . Level 5 . | . . . High Security . | . . . Max Security . | . . . Squads Dispatched 4 | . 1 3 Investigation 2 | . . 2 Extermination . | . . . Reinforcement 1 | . 1 . Assault 1 | . . 1 Garrison . | . . . Intercept . | . . . Searches Triggered . | . . . Construction Impeded . | . . . Haulers Reinforced . | . . . Active Scanning Responses . | . . . Cargo Convoy Interrupts . | . . . Stealth | -11 -10 -9 --------- Run | Yrd Mat Mat Distress Signals 5 | . 2 3 Communications Jammed . | . . . Distress Signals . | . . . Times Spotted 68 | 1 10 57 Peak Tracking Total 6 | 1 3 6 Tactical Retreats 5 | . . 5 Traps | -11 -10 -9 ------- Run | Yrd Mat Mat Traps Triggered 6 | . 1 5 Indirectly 3 | . . 3 Trap Hack Attempts . | . . . Triggered . | . . . Disarmed . | . . . Reprogrammed . | . . . Reused . | . . . Traps Extracted . | . . . Installed . | . . . Triggered . | . . . Machines | -11 -10 -9 ---------- Run | Yrd Mat Mat Machines Disabled 8 | . 2 6 Max in Single Turn 2 | . 1 2 Machines Repaired . | . . . Machines Dismantled . | . . . Machines Sabotaged . | . . . Overloaded Fab Kills . | . . . Hacking | -11 -10 -9 --------- Run | Yrd Mat Mat Machines Accessed 6 | . 2 4 Terminals 3 | . 2 1 Fabricators . | . . . Repair Stations 1 | . . 1 Recycling Units 1 | . . 1 Scanalyzers 1 | . . 1 Garrison Access . | . . . Total Hacks 19 | . 3 16 Successful 12 | . 1 11 Failed 7 | . 2 5 Catastrophic . | . . . Database Lockouts . | . . . Manual . | . . . Terminals 7 | . 3 4 Fabricators . | . . . Repair Stations 6 | . . 6 Recycling Units 5 | . . 5 Scanalyzers 1 | . . 1 Garrison Access . | . . . Terminal Hacks 4 | . 1 3 Record 3 | . . 3 Alert Level 1 | . 1 . Fabricator Hacks . | . . . Repair Station Hacks 4 | . . 4 Scan Component 2 | . . 2 Repair 1 | . . 1 Refit 1 | . . 1 Recycling Unit Hacks 4 | . . 4 Recycle Component 2 | . . 2 Process 1 | . . 1 Retrieve Components 1 | . . 1 Scanalyzer . | . . . Garrison Access Hacks . | . . . Unauthorized Hacks . | . . . Terminals . | . . . Fabricators . | . . . Repair Stations . | . . . Recycling Units . | . . . Scanalyzers . | . . . Garrison Access . | . . . Data Cores Recovered . | . . . Used . | . . . Hacking Detections 2 | . 1 1 Full Trace Events 1 | . . 1 Feedback Events 1 | . . 1 Corruption 1 | . . 1 Feedback Blocked . | . . . Robot Schematics Acquired . | . . . Robots Built . | . . . Authchips . | . . . Time . | . . . Total Robot Build Rating . | . . . Part Schematics Acquired . | . . . Parts Built . | . . . Authchips . | . . . Time . | . . . Total Part Build Rating . | . . . Parts Repaired 1 | . . 1 Time 26 | . . 26 Parts Recycled 2 | . . 2 Recycled Matter 353 | . . 353 Retrieved Matter . | . . . Retrieved Components . | . . . Parts Scanalyzed . | . . . Part Schematics Acquired . | . . . Parts Damaged . | . . . Bothacking | -11 -10 -9 ------------ Run | Yrd Mat Mat Used RIF Installer . | . . . Robots Hacked . | . . . Non-combat . | . . . Combat . | . . . Robot Hacks Applied . | . . . Relay Couplers Released . | . . . Fabnet Peak Effective % . | . . . Robots Rewired . | . . . Allies Hacked . | . . . Hacks Repelled . | . . . Allies | -11 -10 -9 -------- Run | Yrd Mat Mat Total Allies . | . . . Largest Group . | . . . Highest-Rated Group . | . . . Highest-Rated Ally . | . . . Total Orders . | . . . Ally Attacks . | . . . Total Damage . | . . . Kills . | . . . Allies Corrupted . | . . . Allies Melted . | . . . Intel | -11 -10 -9 ------- Run | Yrd Mat Mat Robot Analysis Total . | . . . Derelict Logs Recovered . | . . . Drone Launches . | . . . Drone Recoveries . | . . . Exploration | -11 -10 -9 ------------- Run | Yrd Mat Mat Turns Passed 2283 | 118 470 1695 Spaces Moved 1433 | 113 400 920 Core 22 | 22 . . Treads 680 | . . 680 Legs . | . . . Wheels 712 | 91 400 221 Hover 19 | . . 19 Flight . | . . . Fastest Speed 50 | 50 80 80 Average Speed 126 | 74 93 147 Slowest Speed 340 | 80 95 340 Overloaded Moves . | . . . Propulsion Burnouts . | . . . Robots Hopped . | . . . Cave-ins Triggered . | . . . Exploration Rate (%) 32 | 7 36 53 Regions Visited 2 Branch Regions . Pre-discovered Areas . | . . . Known Exits Taken . | . . . Unknown Exits Taken 2 | 1 1 . Scrap Searched . | . . . Spaces Dug . | . . . Terrain Destroyed 110 | . 20 90 Melee . | . . . Projectile . | . . . AOE 110 | . 20 90 Terrain Rammed . | . . . Walls Destroyed . | . . . Machines Disabled . | . . . Actions | -11 -10 -9 --------- Run | Yrd Mat Mat Total 1697 | 134 472 1091 Wait 42 | . 33 9 Move 1431 | 112 399 920 Hop . | . . . Pick Up 46 | 8 12 26 Fast Attach . | . . . Attach 25 | 5 2 18 Detach . | . . . Swap 16 | . 4 12 Drop 22 | 1 7 14 Fire 114 | 8 15 91 Melee . | . . . Ram . | . . . Kick . | . . . Crush 1 | . . 1 Escape Stasis . | . . . Rewire . | . . . Trap . | . . . Miscellaneous . | . . . Route ------- -11/Scrapyard -10/Materials (discovered 2 exits: *Mat / [*Min]) -9/Materials (discovered 1 exit: [*Mat]) History --------- Turn | Location | Event 2 | -11/Scrapyard | Met Revision 17 100 | -11/Scrapyard | Discovered new exit (range 8) 119 | -11/Scrapyard | Entered Materials 307 | -10/Materials | Build established: Mutant 458 | -10/Materials | Discovered new exit (range 14) 501 | -10/Materials | Discovered new exit (range 16) 589 | -10/Materials | Entered another Materials area 589 | -9/Materials | Evolved 2 slots: Power x1, Weapon x1 895 | -9/Materials | Build established: Tank 1342 | -9/Materials | Repaired Lgt. Treads 1559 | -9/Materials | Build established: Scavenger-Skirmisher 1692 | -9/Materials | Core integrity fell below 50% 1753 | -9/Materials | Discovered new exit (range 16) 1804 | -9/Materials | Lost 3 parts (3w) 1958 | -9/Materials | Destroyed 7 combat bots 2189 | -9/Materials | First assault squad dispatched 2243 | -9/Materials | Core integrity fell below 20% 2284 | -9/Materials | Destroyed by G-34 Mercenary with Small Laser Last Messages --------------- Ion Engine destroyed. Rocket Launcher destroyed. G-34 Mercenary destroyed. Switching to secondary target: G-47 Trooper. Critical hit (Burn: +37). G-34 Mercenary misfires. EM Shotgun destroyed. G-34 Mercenary misfires. G-47 Trooper misfires. System corrupted: Matter fused (-9). G-34 Mercenary destroyed. Lgt. Treads destroyed. Acquired 30 matter. K-01 Serf collects debris. Acquired 3 matter. K-01 Serf collects debris. Lgt. Treads destroyed. Acquired 3 matter. K-01 Serf collects debris. Acquired 3 matter. Map ----- +----------------------------------------------------+ | | | | | | | | | | | ?????????????????????????????????????????????????? | | ?????????????????????????????????????????????????? | | ????######???????????????????????????????????????? | | ???? #####???????????????????????????????????? | | ???## #???????????????????????????????????? | | ???# #???????????????????????????????????? | | ???# #????????????? ??????#??????????????? | | ???# !/ #???????????????????????????????????? | | ???# !/ #?????????? ????????????????????????? | | ????# #????????????? ?????????????????????? | | ????# #?????????? ?? ?????????????????????? | | ??## #???????????????????????????????????? | | ??# ! #??????#????????????????#???????????? | | #??##### % # #########?????????????#####?????????? | | #?????## ? ??? ??? ?????????? | | ######## #######????????#???#??# < #?????#???? | | ###???????????????????#?# #?? ? ????? | | ######################??# +?????????# | | "" k i #??# #??????? ?? | | T" ggmk #??# #?????????? | | uu=@k #??# #?????????? | | ########### r#### #??# #?????????# | | ## ## k #??# ##?# #????? ??# | | ## ## #??# #### #???? ????? | | ## ## #??# # # #?? ?????# | | ## """ ## #??# ########### | | / """"" ## = #??# #######"#"" | | ## """"" ## % #??# # | | ## """"" ## * ########### # | | # ## #? """ ## # # # | | ### # #?? ##" # ## # | | ##### ######+#####%" # ## + | | # " # ## # %= | | # + ## # % | | # # ## ##### """ | | = ###+######### ###+#### # """ """ | | # ???? ### # # # | | "??? ??# # "" # # ! | | # "?? ??# # Y" ########## | | # # ??? ??# # "" #????????# ######+##+ | | # ## ?? ??# # #??????#?######## """ | | # ?#""? ??# # #?????#?????##### """ !| | | # ??#"Y ? ??? ########???#???#????#??# """ |] | | # ???"? ? ???#^#??????????????????????# | | | # ????? ? ???# #?? ??????????#????????# | +----------------------------------------------------+ Best States ------------- Heat Dissipation 28 Energy Generation 17 Energy Capacity 290 Matter Stores 300 Matter Capacity 400 Sight Range 16 Terrain Scan Range 16 Terrain Scan Density 10 Additional Mass Support 6 Armor Coverage 150 Evasion (%) 50 Recoil Reduction 2 Item Schematics ----------------- None Robot Schematics ------------------ None Fabricated ------------ Nothing Alien Tech Used ----------------- None Achievements -------------- Loot Pinata Part-time Mechanic Risk Taker Significant Disruption Use The Force Challenges ------------ None Game ------ Seed TerrainBladeArmor Manual? 0 Play Time 00:30:43 Cumulative 0.9 hours Start 2024.11.07 @ 02:56:32 End 2024.11.08 @ 02:09:28 Sessions 3 Manual Loads 0 Difficulty Rogue Special Mode None Game No. 2 Rogue 2 Adventurer 0 Explorer 0 Win Type - Total 0 Types 0/0/0/0/0/0/0/0/0 Lore% 0 Gallery% 2 Achievement% 3 Wizard Run 0 Options --------- Layout 1 ASCII 0 Keyboard 0 Movement Mouse Keybinds 0 Fullscreen 1 Font 24/Smallcaps Map View 50x35 Zoom Use 0% Tactical HUD 0 Map Filters NONE Filters NONE Steam 1 RUN: 678d4f54-a118-431c-807c-feaac6ee8267